bitfinex/quotes_BTCUSD_20241101
["timestamp","ask_amount","ask_price","bid_price","bid_amount"]
[1730499667522,0.84058351,69391.0,69390.0,0.001642]
[1730499668428,0.71090968,69391.0,69390.0,0.001642]
[1730499669279,0.69690968,69391.0,69390.0,0.001642]
[1730499669699,0.69890968,69391.0,69390.0,0.001642]
[1730499669898,0.7128678,69391.0,69390.0,0.001642]
[1730499672035,0.71274071,69391.0,69390.0,0.001642]
[1730499672234,0.7128678,69391.0,69390.0,0.001642]
[1730499673320,0.5743905,69391.0,69390.0,0.001642]
[1730499674165,0.52934926,69391.0,69390.0,0.001642]
[1730499676555,0.5293142,69391.0,69390.0,0.001642]
[1730499677700,0.52918711,69391.0,69390.0,0.001642]
[1730499678067,0.5293142,69391.0,69390.0,0.001642]
[1730499678266,0.5283142,69391.0,69390.0,0.084842]
[1730499678501,0.36685895,69391.0,69390.0,0.084842]
[1730499678823,0.45326009,69391.0,69390.0,0.084842]
[1730499679017,0.36667718,69391.0,69390.0,0.084842]
[1730499679214,0.36680427,69391.0,69390.0,0.084842]
[1730499679667,0.38980427,69391.0,69390.0,0.084842]
[1730499680296,0.38980627,69391.0,69390.0,0.084842]
[1730499680494,0.47620609,69391.0,69390.0,0.084842]
[1730499681835,0.47624327,69391.0,69390.0,0.084842]
[1730499682040,0.73186676,69391.0,69390.0,0.084842]
[1730499682239,0.73186676,69391.0,69390.0,0.001642]
[1730499682650,0.64545387,69391.0,69390.0,0.001642]
[1730499683294,0.74545387,69391.0,69390.0,0.001642]
[1730499683489,0.92011417,69391.0,69390.0,0.001642]
[1730499683724,0.77794411,69391.0,69390.0,0.001642]
[1730499683913,0.81305872,69391.0,69390.0,0.001642]
[1730499684445,0.81305872,69391.0,69386.0,0.00163]
[1730499684446,0.14524609,69387.0,69386.0,0.00163]
[1730499684577,0.50132573,69387.0,69386.0,0.00163]
[1730499685200,0.36174339,69387.0,69386.0,0.17663]
[1730499685396,0.36187048,69387.0,69386.0,0.17663]
[1730499685567,0.38987048,69387.0,69386.0,0.17663]
[1730499686749,0.37587048,69387.0,69386.0,0.17663]
[1730499686880,0.36187048,69387.0,69386.0,0.17663]
[1730499687148,0.63980303,69387.0,69386.0,0.00163]
[1730499687397,0.60468842,69387.0,69386.0,0.00163]
[1730499687626,0.63980252,69387.0,69386.0,0.00163]
[1730499687807,0.63980411,69387.0,69386.0,0.00163]
[1730499688589,0.65380411,69387.0,69386.0,0.00163]
[1730499688798,0.66780411,69387.0,69386.0,0.00163]
[1730499690845,0.67861003,69387.0,69386.0,0.00163]
[1730499692605,0.67854781,69387.0,69386.0,0.00163]
[1730499692815,0.68756748,69387.0,69386.0,0.00163]
[1730499694681,0.68745527,69387.0,69386.0,0.00163]
[1730499694891,0.68758236,69387.0,69386.0,0.00163]
[1730499695691,0.68745527,69387.0,69386.0,0.00163]
[1730499695898,0.68758236,69387.0,69386.0,0.00163]
[1730499696114,0.50395482,69387.0,69386.0,0.00163]
[1730499696303,0.4931489,69387.0,69386.0,0.17353]
[1730499696541,0.54811247,69387.0,69386.0,0.17353]
[1730499696750,0.53717505,69387.0,69386.0,0.17353]
[1730499696948,0.54798572,69387.0,69386.0,0.14105917]
[1730499697078,0.54811281,69387.0,69386.0,0.14105917]
[1730499697285,0.70488738,69387.0,69386.0,0.14105917]
[1730499697497,0.144131,69381.0,69380.0,0.0911]
[1730499697679,0.46426276,69381.0,69380.0,0.0911]
[1730499697885,0.62375981,69381.0,69380.0,0.0911]
[1730499698285,0.53734448,69381.0,69380.0,0.0911]
[1730499698484,0.55354112,69381.0,69380.0,0.0911]
[1730499698691,0.48127994,69381.0,69380.0,0.0911]
[1730499698911,0.54273099,69381.0,69380.0,0.0911]
[1730499699134,0.56754148,69381.0,69380.0,0.0911]
[1730499699342,0.58154148,69381.0,69380.0,0.0911]
[1730499699895,0.55354148,69381.0,69380.0,0.0911]
[1730499700105,0.58154148,69381.0,69380.0,0.0911]
[1730499700483,0.56754148,69381.0,69380.0,0.0911]
[1730499701270,0.5675368,69381.0,69380.0,0.0911]
[1730499701921,0.5815368,69381.0,69380.0,0.0911]
[1730499702153,0.68955596,69381.0,69380.0,0.0911]
[1730499702764,0.68954923,69381.0,69380.0,0.0911]
[1730499704469,0.58153007,69381.0,69380.0,0.0911]
[1730499705315,0.68956597,69381.0,69380.0,0.0911]
[1730499705441,0.58153007,69381.0,69380.0,0.0911]
[1730499705850,0.5725099,69381.0,69380.0,0.0911]
[1730499706105,0.54440036,69381.0,69380.0,0.0911]
[1730499706306,0.57252961,69381.0,69380.0,0.0911]
[1730499707327,0.57252961,69381.0,69374.0,0.00163]
[1730499707328,0.024,69376.0,69374.0,0.00163]
[1730499707540,0.57450065,69376.0,69374.0,0.00163]
[1730499709138,0.58837356,69376.0,69374.0,0.00163]
[1730499709499,0.5749928,69376.0,69374.0,0.00163]
[1730499709818,0.58846935,69376.0,69374.0,0.00163]
[1730499710041,0.60466599,69376.0,69374.0,0.00163]
[1730499710577,0.60447878,69376.0,69374.0,0.00163]
[1730499710787,0.60460587,69376.0,69374.0,0.00163]
[1730499711433,0.61860587,69376.0,69374.0,0.00163]
[1730499711642,0.61847878,69376.0,69374.0,0.00163]
[1730499711859,0.61860587,69376.0,69374.0,0.00163]
[1730499712631,0.61847878,69376.0,69374.0,0.00163]
[1730499712843,0.61860587,69376.0,69374.0,0.00163]
[1730499713066,0.58350283,69376.0,69374.0,0.00163]
[1730499713279,0.56276394,69376.0,69374.0,0.00163]
[1730499713517,0.57356252,69376.0,69374.0,0.00163]
[1730499714387,0.55956252,69376.0,69374.0,0.00163]
[1730499714622,0.64556252,69376.0,69374.0,0.00163]
[1730499714852,0.26827109,69375.0,69374.0,1.4e-07]
[1730499715087,0.26827109,69375.0,69368.0,0.00163]
[1730499715088,0.94221654,69375.0,69368.0,0.00163]
[1730499715334,0.82403834,69369.0,69368.0,1e-06]
[1730499715558,1.10784522,69369.0,69368.0,1e-06]
[1730499717676,1.12184522,69369.0,69368.0,1e-06]
[1730499717880,1.13584522,69369.0,69368.0,1e-06]
[1730499719621,1.04566478,69369.0,69368.0,1e-06]
[1730499720241,0.96826478,69369.0,69368.0,1e-06]
[1730499720658,0.94018847,69369.0,69368.0,1e-06]
[1730499720865,0.96820647,69369.0,69368.0,1e-06]
[1730499721281,1.0974858,69369.0,69368.0,1e-06]
[1730499722410,0.001,69357.0,69353.0,0.1785]
[1730499722541,0.34073364,69356.0,69353.0,0.1785]
[1730499722755,0.36875164,69356.0,69353.0,0.1785]
[1730499722955,0.36866614,69356.0,69353.0,0.1785]
[1730499724302,0.38266614,69356.0,69353.0,0.1785]
[1730499724836,0.39666614,69356.0,69353.0,0.1785]
[1730499725096,0.51987809,69356.0,69353.0,0.1785]
[1730499725293,0.51987809,69356.0,69342.0,0.001632]
[1730499725294,0.62000518,69356.0,69349.0,0.0978]
[1730499726194,0.61987809,69356.0,69349.0,0.0978]
[1730499726412,0.56762112,69356.0,69349.0,0.0978]
[1730499726629,0.56762112,69356.0,69343.0,0.002]
[1730499726630,0.001,69348.0,69343.0,0.1771]
[1730499726829,0.67464585,69356.0,69343.0,0.1771]
[1730499726830,0.168208,69344.0,69343.0,0.1771]
[1730499727156,0.168208,69344.0,69342.0,0.001632]
[1730499727157,0.26833709,69343.0,69342.0,0.001632]
[1730499727411,0.35716442,69343.0,69342.0,0.001632]
[1730499727574,0.581347,69343.0,69342.0,1e-06]
[1730499727834,0.16837009,69327.0,69324.0,0.21707513]
[1730499728033,0.23138,69327.0,69324.0,0.21707513]
[1730499728437,0.38603189,69327.0,69321.0,0.0793]
[1730499728766,0.3859048,69327.0,69321.0,0.0793]
[1730499728981,0.38603189,69327.0,69321.0,0.0793]
[1730499729404,0.38603189,69327.0,69314.0,0.0793]
[1730499729405,0.50003189,69327.0,69314.0,0.0793]
[1730499729797,0.49997352,69327.0,69314.0,0.0793]
[1730499730435,0.51397352,69327.0,69314.0,0.0793]
[1730499730840,0.48264979,69327.0,69324.0,0.002]
[1730499731091,0.48264979,69327.0,69326.0,0.1278]
[1730499731092,0.38260985,69327.0,69326.0,0.1278]
[1730499731351,0.39673694,69327.0,69326.0,0.1278]
[1730499731522,0.39673205,69327.0,69326.0,0.1278]
[1730499731735,0.62628886,69327.0,69326.0,0.03]
[1730499732069,0.865766,69327.0,69326.0,0.03]
[1730499732274,0.87628886,69327.0,69326.0,0.03]
[1730499733576,0.84832929,69327.0,69326.0,0.03]
[1730499733789,0.87624211,69327.0,69326.0,0.03]
[1730499733997,0.87624211,69327.0,69326.0,0.031644]
[1730499734626,0.26837309,69326.0,69325.0,1e-06]
[1730499734867,0.26837309,69326.0,69316.0,0.001632]
[1730499734868,0.26839109,69317.0,69316.0,0.001632]
[1730499735079,0.4697063,69317.0,69316.0,0.001632]
[1730499735516,0.7197063,69317.0,69316.0,0.001632]
[1730499735744,0.84817415,69317.0,69316.0,0.001632]
[1730499736616,0.86217415,69317.0,69316.0,0.001632]
[1730499737262,0.82730137,69317.0,69316.0,0.001632]
[1730499737463,0.82730137,69317.0,69305.0,0.001632]
[1730499737464,0.168287,69306.0,69305.0,0.001632]
[1730499737695,0.36949498,69306.0,69305.0,0.001632]
[1730499737901,0.39561211,69306.0,69305.0,0.001632]
[1730499738496,0.36949498,69306.0,69305.0,0.001632]
[1730499738705,0.36632684,69306.0,69305.0,0.001632]
[1730499738916,0.39448098,69306.0,69305.0,0.001632]
[1730499740216,0.39446949,69306.0,69305.0,0.001632]
[1730499740449,0.39445969,69306.0,69305.0,0.001632]
[1730499740657,0.52048777,69306.0,69305.0,0.001632]
[1730499742408,0.62061486,69306.0,69305.0,0.001632]
[1730499743688,0.62061653,69306.0,69305.0,0.001632]
[1730499743815,0.49458845,69306.0,69305.0,0.001632]
[1730499744076,0.49459037,69306.0,69305.0,0.001632]
[1730499744299,0.49459023,69306.0,69305.0,0.001632]
[1730499744501,0.49460122,69306.0,69305.0,0.001632]
[1730499744925,0.63288998,69306.0,69305.0,0.001632]
[1730499747868,0.63276289,69306.0,69305.0,0.001632]
[1730499748289,0.63288998,69306.0,69305.0,0.001632]
[1730499750041,0.1673,69300.0,69299.0,0.02962405]
[1730499750246,0.21287745,69300.0,69299.0,0.02962405]
[1730499750455,0.22926263,69300.0,69299.0,0.02962405]
[1730499750665,0.023,69299.0,69298.0,0.001632]
[1730499750882,0.21287945,69299.0,69298.0,0.001632]
[1730499751109,0.23003388,69299.0,69298.0,0.001632]
[1730499751533,0.23007399,69299.0,69298.0,0.001632]
[1730499752198,0.23107399,69299.0,69298.0,0.001632]
[1730499752405,0.08777199,69299.0,69298.0,0.184232]
[1730499752582,0.04761756,69299.0,69298.0,0.18910491]
[1730499753925,0.04761756,69299.0,69298.0,0.33340891]
[1730499755242,0.04770732,69299.0,69298.0,0.33340891]
[1730499756338,0.06490374,69299.0,69298.0,0.33340891]
[1730499759786,0.20920574,69299.0,69298.0,0.18310491]
[1730499760000,0.23220574,69299.0,69298.0,0.178232]
[1730499760217,0.23220574,69299.0,69298.0,0.03657712]
[1730499760434,0.167308,69296.0,69295.0,0.00487291]
[1730499760649,0.08590374,69296.0,69291.0,0.0965]
[1730499760870,0.288613,69297.0,69294.0,0.00487291]
[1730499760871,0.08590374,69295.0,69294.0,0.00487291]
[1730499761100,0.08590374,69295.0,69291.0,0.0965]
[1730499761319,0.167316,69292.0,69291.0,0.10137291]
[1730499761527,0.23021974,69292.0,69291.0,0.10137291]
[1730499762014,0.23021974,69292.0,69291.0,0.0965]
[1730499762247,0.34002851,69292.0,69291.0,0.0965]
[1730499762457,0.167329,69286.0,69284.0,0.004]
[1730499762684,0.23039597,69286.0,69284.0,0.00887291]
[1730499762911,0.23039597,69286.0,69285.0,0.00650491]
[1730499763382,0.22751097,69286.0,69285.0,0.001632]
[1730499763815,0.22751097,69286.0,69285.0,0.00850491]
[1730499764023,0.22751097,69286.0,69285.0,0.001632]
[1730499764251,0.35085577,69286.0,69285.0,0.001632]
[1730499764463,0.36085577,69286.0,69285.0,0.001632]
[1730499764920,0.35085577,69286.0,69285.0,0.001632]
[1730499765128,0.36185577,69286.0,69285.0,0.001632]
[1730499766678,0.23106417,69286.0,69285.0,0.001632]
[1730499766902,0.25268504,69286.0,69285.0,0.003632]
[1730499767148,0.21376655,69286.0,69285.0,0.003632]
[1730499767351,0.23538659,69286.0,69285.0,0.001632]
[1730499767782,0.25268262,69286.0,69285.0,0.001632]
[1730499767998,0.22457657,69286.0,69285.0,0.001632]
[1730499768219,0.0882328,69286.0,69285.0,0.15483591]
[1730499768441,0.0882328,69286.0,69285.0,0.15683591]
[1730499770344,0.025,69286.0,69285.0,0.15683591]
[1730499770566,0.08822155,69286.0,69285.0,0.15683591]
[1730499773557,0.09344318,69286.0,69285.0,0.25133591]
[1730499773789,0.07093019,69286.0,69285.0,0.32972229]
[1730499774004,0.07093019,69286.0,69285.0,0.32683591]
[1730499774201,0.07092529,69286.0,69285.0,0.32683591]
[1730499774637,0.07092529,69286.0,69285.0,0.47529116]
[1730499774876,0.06011934,69286.0,69285.0,0.47529116]
[1730499775095,0.04911934,69286.0,69285.0,0.47529116]
[1730499775766,0.05011934,69286.0,69285.0,0.47529116]
[1730499775983,0.01450744,69286.0,69285.0,0.47529116]
[1730499776670,0.01550744,69286.0,69285.0,0.47529116]
[1730499777090,0.01450744,69286.0,69285.0,0.47529116]
[1730499777340,0.01450744,69286.0,69285.0,0.47629116]
[1730499777596,0.01450744,69286.0,69285.0,0.47729116]
[1730499777597,0.01550744,69286.0,69285.0,0.47729116]
[1730499777798,0.002,69286.0,69285.0,0.47729116]
[1730499778222,0.001642,69299.0,69298.0,0.002]
[1730499778452,0.001642,69299.0,69298.0,0.316304]
[1730499778670,0.03673865,69299.0,69298.0,0.316304]
[1730499779108,0.01514071,69299.0,69298.0,0.316304]
[1730499779545,0.02914071,69299.0,69298.0,0.316304]
[1730499779971,0.02913467,69299.0,69298.0,0.316304]
[1730499780403,0.02913467,69299.0,69298.0,0.45975925]
[1730499780613,0.02913467,69299.0,69298.0,0.46475925]
[1730499781026,0.03713316,69299.0,69298.0,0.46575925]
[1730499781265,0.03713296,69299.0,69298.0,0.59926459]
[1730499781481,0.023642,69299.0,69298.0,0.46075925]
[1730499781692,0.023642,69299.0,69298.0,0.46575925]
[1730499784582,0.023642,69299.0,69298.0,0.46075925]
[1730499784993,0.023642,69299.0,69298.0,0.46575925]
[1730499786696,0.023642,69299.0,69298.0,0.46075925]
[1730499786917,0.023642,69299.0,69298.0,0.46575925]
[1730499787534,0.023642,69299.0,69298.0,0.46075925]
[1730499787757,0.023642,69299.0,69298.0,0.46575925]
[1730499790602,0.023642,69299.0,69298.0,0.46075925]
[1730499790810,0.023642,69299.0,69298.0,0.46575925]
[1730499795617,0.023642,69299.0,69298.0,0.317304]
[1730499796482,0.03711569,69299.0,69298.0,0.317304]
[1730499796926,0.03711569,69299.0,69298.0,0.46075925]
[1730499797143,0.023642,69299.0,69298.0,0.46075925]
[1730499797564,0.03712141,69299.0,69298.0,0.46075925]
[1730499798425,0.023642,69299.0,69298.0,0.46075925]
[1730499799503,0.03712486,69299.0,69298.0,0.46075925]
[1730499799710,0.023642,69299.0,69298.0,0.46075925]
[1730499800331,0.013642,69299.0,69298.0,0.46075925]
[1730499800532,0.02712946,69299.0,69298.0,0.46075925]
[1730499802089,0.0271381,69299.0,69298.0,0.46075925]
[1730499803414,0.0271381,69299.0,69298.0,0.59392128]
[1730499803619,0.0271381,69299.0,69298.0,0.59892128]
[1730499803620,0.013642,69299.0,69298.0,0.59892128]
[1730499804481,0.02715871,69299.0,69298.0,0.59892128]
[1730499804928,0.02715871,69299.0,69298.0,0.65230925]
[1730499805366,0.02880071,69299.0,69298.0,0.65230925]
[1730499805818,0.015284,69299.0,69298.0,0.65689414]
[1730499808956,0.015284,69299.0,69298.0,0.65889414]
[1730499809163,0.015284,69299.0,69298.0,0.79737144]
[1730499809579,0.009642,69299.0,69298.0,0.79737144]
[1730499809790,0.001642,69299.0,69298.0,0.79437144]
[1730499810047,0.002642,69299.0,69298.0,0.80837144]
[1730499810259,0.003642,69299.0,69298.0,0.82237144]
[1730499811953,1e-06,69299.0,69298.0,0.82237144]
[1730499812369,0.21707513,69316.0,69315.0,0.1777]
[1730499812594,0.21707513,69316.0,69315.0,0.47869325]
[1730499812595,0.23058337,69316.0,69315.0,0.47869325]
[1730499812808,0.01350824,69316.0,69315.0,0.47869325]
[1730499813657,0.01850824,69316.0,69315.0,0.47969325]
[1730499815504,0.02950824,69316.0,69315.0,0.239568]
[1730499815747,0.02950824,69316.0,69315.0,0.148268]
[1730499815748,0.05110681,69316.0,69315.0,0.148268]
[1730499816876,0.19537281,69316.0,69315.0,0.002]
[1730499817089,0.17572136,69316.0,69315.0,0.002]
[1730499817302,0.2901931,69316.0,69315.0,0.002]
[1730499817508,0.27846501,69316.0,69315.0,0.002]
[1730499817731,0.29101264,69316.0,69315.0,0.002]
[1730499818153,0.31401264,69316.0,69315.0,0.002]
[1730499818622,0.33651196,69316.0,69315.0,0.002]
[1730499818841,0.31401264,69316.0,69315.0,0.002]
[1730499819102,0.58459655,69316.0,69315.0,0.002]
[1730499819305,0.58459655,69316.0,69315.0,0.001]
[1730499819306,0.57959655,69316.0,69315.0,0.001]
[1730499819759,0.144286,69307.0,69303.0,0.36336813]
[1730499819968,0.05492564,69306.0,69305.0,0.002]
[1730499820479,0.04142605,69306.0,69305.0,0.002]
[1730499820706,0.05493348,69306.0,69305.0,0.002]
[1730499821359,0.04413226,69306.0,69305.0,0.002]
[1730499821577,0.05493348,69306.0,69305.0,0.002]
[1730499822040,0.07743603,69306.0,69305.0,0.002]
[1730499822267,0.06893348,69306.0,69305.0,0.002]
[1730499822476,0.06893348,69306.0,69305.0,0.146289]
[1730499822706,0.07993348,69306.0,69305.0,0.146289]
[1730499823136,0.04610398,69306.0,69305.0,0.146289]
[1730499823346,0.05690333,69306.0,69305.0,0.002]
[1730499823565,0.21321861,69306.0,69305.0,0.002]
[1730499824304,0.05812746,69306.0,69305.0,0.002]
[1730499824522,0.06892708,69306.0,69305.0,0.002]
[1730499824731,0.06892708,69306.0,69302.0,0.288589]
[1730499824732,0.11167508,69306.0,69302.0,0.002]
[1730499824954,0.075,69306.0,69305.0,0.002]
[1730499825167,0.15692748,69306.0,69305.0,0.003]
[1730499825382,0.14392748,69306.0,69305.0,0.003]
[1730499825590,0.15592748,69306.0,69305.0,0.003]
[1730499825794,0.14192748,69306.0,69305.0,0.002]
[1730499826210,0.15592748,69306.0,69305.0,0.002]
[1730499826629,0.28621448,69306.0,69305.0,0.002]
[1730499827238,0.06692748,69306.0,69305.0,0.002]
[1730499827458,0.06692748,69306.0,69305.0,0.14917462]
[1730499827661,0.05789834,69306.0,69305.0,0.146289]
[1730499828077,0.06109873,69306.0,69305.0,0.147289]
[1730499830367,0.06274073,69306.0,69305.0,0.147289]
[1730499830572,0.06274073,69306.0,69305.0,0.064149]
[1730499830781,0.06274073,69306.0,69305.0,0.145289]
[1730499838336,0.027642,69306.0,69305.0,0.145289]
[1730499838551,0.06273261,69306.0,69305.0,0.145289]
[1730499841150,0.04113839,69306.0,69305.0,0.220789]
[1730499841358,0.06273372,69306.0,69305.0,0.220789]
[1730499841778,0.06273929,69306.0,69305.0,0.220789]
[1730499843708,0.06273929,69306.0,69305.0,0.312989]
[1730499844618,0.06277458,69306.0,69305.0,0.312989]
[1730499847000,0.06277458,69306.0,69305.0,0.237489]
[1730499847266,0.0826202,69306.0,69305.0,0.237489]
[1730499847481,0.09088222,69306.0,69305.0,0.145289]
[1730499847680,0.0826202,69306.0,69305.0,0.145289]
[1730499847888,0.05197228,69306.0,69305.0,0.145289]
[1730499848263,0.0826514,69306.0,69305.0,0.145289]
[1730499851516,0.027642,69306.0,69305.0,0.145289]
[1730499851677,0.08265447,69306.0,69305.0,0.145289]
[1730499851891,0.027642,69306.0,69305.0,0.145289]
[1730499852101,0.06101478,69306.0,69305.0,0.145289]
[1730499852335,0.08265447,69306.0,69305.0,0.145289]
[1730499854361,0.08265969,69306.0,69305.0,0.145289]
[1730499855207,0.07183981,69306.0,69305.0,0.145289]
[1730499855419,0.08266146,69306.0,69305.0,0.145289]
[1730499856287,0.07363335,69306.0,69305.0,0.145289]
[1730499858826,0.07364019,69306.0,69305.0,0.145289]
[1730499861435,0.07364019,69306.0,69305.0,0.38702971]
[1730499861645,0.0628117,69306.0,69305.0,0.46154425]
[1730499861860,0.027642,69306.0,69305.0,0.56154425]
[1730499862075,0.06283175,69306.0,69305.0,0.56154425]
[1730499862322,0.04117652,69306.0,69305.0,0.56154425]
[1730499862568,0.06282572,69306.0,69305.0,0.56154425]
[1730499863222,0.04117652,69306.0,69305.0,0.56154425]
[1730499863451,0.06282166,69306.0,69305.0,0.55654425]
[1730499863882,0.06282166,69306.0,69305.0,0.45654425]
[1730499864112,0.06282166,69306.0,69305.0,0.46154425]
[1730499865194,0.04117652,69306.0,69305.0,0.46154425]
[1730499865408,0.04117652,69306.0,69305.0,0.45654425]
[1730499865622,0.04117652,69306.0,69305.0,0.46154425]
[1730499865877,0.04116753,69306.0,69305.0,0.145289]
[1730499866250,0.07363038,69306.0,69305.0,0.145289]
[1730499866727,0.07363038,69306.0,69305.0,0.14611]
[1730499869090,0.03846311,69306.0,69305.0,0.14611]
[1730499869297,0.06281234,69306.0,69305.0,0.14611]
[1730499869506,0.08445573,69306.0,69305.0,0.14611]
[1730499871452,0.61839581,69306.0,69305.0,0.001821]
[1730499871654,0.80642624,69306.0,69305.0,0.001821]
[1730499871872,0.71988487,69306.0,69305.0,0.001821]
[1730499872083,0.76498822,69306.0,69305.0,0.001821]
[1730499872289,0.76498822,69306.0,69291.0,0.36139213]
[1730499872290,0.1673,69300.0,69291.0,0.36139213]
[1730499872517,0.1673,69300.0,69292.0,0.144316]
[1730499872518,0.43527945,69300.0,69292.0,0.144316]
[1730499872723,0.45961002,69300.0,69293.0,0.144313]
[1730499873159,0.45960413,69300.0,69291.0,0.21707513]
[1730499873388,0.21326797,69300.0,69286.0,0.100421]
[1730499873618,0.21326797,69300.0,69289.0,0.21707513]
[1730499873619,0.55151649,69300.0,69289.0,0.21707513]
[1730499873877,0.46496722,69300.0,69289.0,0.21707513]
[1730499874299,0.56546472,69300.0,69289.0,0.21707513]
[1730499875427,0.47896722,69300.0,69289.0,0.21707513]
[1730499875853,0.61744452,69300.0,69289.0,0.21707513]
[1730499876062,0.58229254,69300.0,69289.0,0.21707513]
[1730499876292,0.533341,69300.0,69289.0,0.21707513]
[1730499876507,0.52252501,69300.0,69289.0,0.21707513]
[1730499877370,0.48018173,69300.0,69289.0,0.21707513]
[1730499877572,0.46937912,69300.0,69289.0,0.21707513]
[1730499877797,0.54501251,69300.0,69289.0,0.21707513]
[1730499878002,0.5234,69300.0,69289.0,0.21707513]
[1730499878205,0.48015699,69300.0,69289.0,0.21707513]
[1730499878616,0.52336076,69300.0,69289.0,0.21707513]
[1730499878823,0.48015699,69300.0,69289.0,0.21707513]
[1730499879252,0.50086146,69300.0,69289.0,0.21707513]
[1730499880203,0.50085988,69300.0,69289.0,0.21707513]
[1730499881468,0.45766367,69300.0,69289.0,0.21707513]
[1730499882031,0.50085988,69300.0,69289.0,0.21707513]
[1730499882230,0.48015699,69300.0,69289.0,0.21707513]
[1730499883441,0.4117773,69300.0,69289.0,0.21707513]
[1730499883835,0.48009163,69300.0,69289.0,0.21707513]
[1730499884261,0.45761981,69300.0,69289.0,0.21707513]
[1730499887090,0.52241412,69300.0,69289.0,0.21707513]
[1730499887302,0.45761981,69300.0,69289.0,0.21707513]
[1730499889284,0.5007709,69300.0,69289.0,0.21707513]
[1730499889499,0.45761981,69300.0,69290.0,0.14432]
[1730499889721,0.45761981,69300.0,69289.0,0.36139713]
[1730499890139,0.44683334,69300.0,69289.0,0.36139713]
[1730499890354,0.45761638,69300.0,69289.0,0.21707513]
[1730499890570,0.45761638,69300.0,69289.0,0.36139713]
[1730499891221,0.37961638,69300.0,69289.0,0.36139713]
[1730499891438,0.37961638,69300.0,69289.0,0.21707513]
[1730499892059,0.37961638,69300.0,69289.0,0.36139713]
[1730499892289,0.37961638,69300.0,69290.0,0.21707513]
[1730499892510,0.52307163,69300.0,69286.0,0.000821]
[1730499892761,0.69497163,69300.0,69291.0,0.21707513]
[1730499892998,0.73812272,69300.0,69291.0,0.21707513]
[1730499893208,0.84312272,69300.0,69291.0,0.21707513]
[1730499894751,0.84112272,69300.0,69291.0,0.21707513]
[1730499895391,0.79797163,69300.0,69291.0,0.21707513]
[1730499895809,0.70107163,69300.0,69291.0,0.21707513]
[1730499896023,0.62307163,69300.0,69291.0,0.21707513]
[1730499896230,0.62807163,69300.0,69291.0,0.21707513]
[1730499896442,0.62307163,69300.0,69286.0,0.000821]
[1730499896694,0.67322272,69300.0,69286.0,0.000821]
[1730499896899,0.66622272,69300.0,69289.0,0.21707513]
[1730499897118,0.28429017,69300.0,69293.0,0.0765]
[1730499897336,0.23035604,69300.0,69293.0,0.0765]
[1730499897539,0.24115794,69300.0,69293.0,0.0765]
[1730499900775,0.22340844,69300.0,69293.0,0.0765]
[1730499901002,0.25857687,69300.0,69293.0,0.0765]
[1730499901662,0.37598904,69300.0,69293.0,0.0765]
[1730499903828,0.37598904,69300.0,69292.0,0.0996]
[1730499904032,0.35440274,69300.0,69292.0,0.0996]
[1730499904249,0.37606018,69300.0,69292.0,0.0996]
[1730499907102,0.50368765,69300.0,69289.0,0.21707513]
[1730499907316,0.6730423,69300.0,69289.0,0.21707513]
[1730499907521,0.68387121,69300.0,69289.0,0.21707513]
[1730499908191,0.64073635,69300.0,69289.0,0.21707513]
[1730499908414,0.70743864,69300.0,69289.0,0.21707513]
[1730499908636,0.70543864,69300.0,69289.0,0.21707513]
[1730499908819,0.64073635,69300.0,69289.0,0.21707513]
[1730499909283,0.70543864,69300.0,69289.0,0.21707513]
[1730499910356,0.88643852,69300.0,69289.0,0.21707513]
[1730499910566,0.8865514,69300.0,69289.0,0.21707513]
[1730499911235,0.80017108,69300.0,69289.0,0.21707513]
[1730499912364,0.90814649,69300.0,69289.0,0.21707513]
[1730499913220,0.80017108,69300.0,69289.0,0.21707513]
[1730499913645,0.80217108,69300.0,69289.0,0.21707513]
[1730499914085,0.73881965,69300.0,69289.0,0.21707513]
[1730499914309,0.77401734,69300.0,69289.0,0.21707513]
[1730499914527,0.78934596,69300.0,69289.0,0.21707513]
[1730499914748,0.8001761,69300.0,69289.0,0.21707513]
[1730499915171,0.72427104,69300.0,69289.0,0.21707513]
[1730499915695,0.169302,69299.0,69298.0,0.00145201]
[1730499915925,0.61312264,69299.0,69298.0,0.00145201]
[1730499916124,0.61312411,69299.0,69298.0,0.00145201]
[1730499916931,0.61112549,69299.0,69298.0,0.00145201]
[1730499917155,0.62512549,69299.0,69298.0,0.00145201]
[1730499917737,0.62512492,69299.0,69298.0,0.00145201]
[1730499917933,0.60186258,69299.0,69298.0,0.00145201]
[1730499918154,0.46340733,69299.0,69298.0,0.00145201]
[1730499918361,0.59335349,69299.0,69298.0,0.00145201]
[1730499918947,0.46340733,69299.0,69298.0,0.00145201]
[1730499920658,0.41828754,69299.0,69298.0,0.00145201]
[1730499920887,0.41828754,69299.0,69298.0,0.10055201]
[1730499921465,0.52656733,69299.0,69298.0,0.10055201]
[1730499921850,0.41828754,69299.0,69298.0,0.10055201]
[1730499923518,0.25866016,69299.0,69298.0,0.10055201]
[1730499923722,0.41854776,69299.0,69298.0,0.10055201]
[1730499923925,0.39054776,69299.0,69298.0,0.10055201]
[1730499924485,0.41854776,69299.0,69298.0,0.10055201]
[1730499924697,0.42018976,69299.0,69298.0,0.10055201]
[1730499924906,0.42018611,69299.0,69298.0,0.10055201]
[1730499925412,0.36249864,69299.0,69298.0,0.18235201]
[1730499925651,0.29843011,69299.0,69298.0,0.18235201]
[1730499925880,0.13854616,69299.0,69298.0,0.32665601]
[1730499926097,0.159295,69299.0,69298.0,0.32665601]
[1730499926555,0.0986679,69299.0,69298.0,0.32665601]
[1730499927002,0.0846679,69299.0,69298.0,0.32665601]
[1730499927495,0.0986679,69299.0,69298.0,0.32665601]
[1730499931146,0.0986679,69299.0,69298.0,0.18235201]
[1730499931389,0.0986679,69299.0,69298.0,0.32665601]
[1730499931825,0.0986679,69299.0,69298.0,0.18235201]
[1730499933159,0.2561617,69299.0,69298.0,0.10055201]
[1730499933365,0.36706936,69299.0,69298.0,0.00145201]
[1730499933585,0.30211168,69299.0,69298.0,0.00145201]
[1730499933809,0.56572981,69299.0,69298.0,0.00145201]
[1730499934499,0.57338574,69299.0,69298.0,0.00145201]
[1730499934716,0.4651061,69299.0,69298.0,0.00145201]
[1730499934984,0.4791061,69299.0,69298.0,0.00145201]
[1730499935834,0.4651061,69299.0,69298.0,0.00145201]
[1730499936306,0.4791061,69299.0,69298.0,0.00145201]
[1730499936516,0.4511061,69299.0,69298.0,0.00145201]
[1730499936743,0.4651061,69299.0,69298.0,0.00145201]